[Event "Open NK Rapid 2025 bord 26-50"]
[Site "Helmond, Netherlands"]
[Date "2025.05.03"]
[Round "4.7"]
[White "Werkhoven, Maarten"]
[Black "Thodam, Malte"]
[Result "0-1"]
[TimeControl "15 min +5 sec increment"]
[WhiteFideId "1014188"]
[BlackFideId "24687120"]
[WhiteElo "1822"]
[BlackElo "2044"]

1. Nc3 {[%clk 00:15:09]} d5 {[%clk 00:15:08]} {[%emt 00:00:03]} 2. e4 {[%clk
00:15:13]} {[%emt 00:00:01]} d4 {[%clk 00:14:59]} {[%emt 00:00:14]} 3. Nce2
{[%clk 00:15:17]} {[%emt 00:00:01]} c5 {[%clk 00:15:03]} {[%emt 00:00:02]} 4.
Nf3 {[%clk 00:15:07]} {[%emt 00:00:14]} Nc6 {[%clk 00:15:06]} {[%emt 00:00:02]}
5. Ng3 {[%clk 00:15:10]} {[%emt 00:00:01]} g6 {[%clk 00:14:04]} {[%emt
00:01:08]} 6. Bc4 {[%clk 00:15:12]} {[%emt 00:00:02]} Bg7 {[%clk 00:13:29]}
{[%emt 00:00:41]} 7. O-O {[%clk 00:15:04]} {[%emt 00:00:12]} Nf6 {[%clk
00:13:24]} {[%emt 00:00:11]} 8. d3 {[%clk 00:14:42]} {[%emt 00:00:27]} O-O
{[%clk 00:13:25]} {[%emt 00:00:05]} 9. Bg5 {[%clk 00:14:06]} {[%emt 00:00:40]}
h6 {[%clk 00:12:51]} {[%emt 00:00:39]} 10. Bd2 {[%clk 00:14:06]} {[%emt
00:00:05]} Bg4 {[%clk 00:10:58]} {[%emt 00:01:59]} 11. h3 {[%clk 00:13:15]}
{[%emt 00:00:55]} Bxf3 {[%clk 00:11:00]} {[%emt 00:00:03]} 12. Qxf3 {[%clk
00:13:18]} {[%emt 00:00:02]} Ne5 {[%clk 00:11:01]} {[%emt 00:00:04]} 13. Qe2
{[%clk 00:13:20]} Nxc4 {[%clk 00:11:02]} {[%emt 00:00:06]} 14. dxc4 {[%clk
00:13:24]} {[%emt 00:00:01]} Qb6 {[%clk 00:09:23]} {[%emt 00:01:45]} 15. b3
{[%clk 00:12:47]} {[%emt 00:00:41]} Nd7 {[%clk 00:08:18]} {[%emt 00:01:10]} 16.
f4 {[%clk 00:12:44]} {[%emt 00:00:07]} d3 {[%clk 00:07:30]} {[%emt 00:00:54]}
17. Qxd3 {[%clk 00:11:58]} {[%emt 00:00:51]} Bxa1 {[%clk 00:07:22]} {[%emt
00:00:13]} 18. Rxa1 {[%clk 00:11:24]} {[%emt 00:00:39]} Rad8 {[%clk 00:07:17]}
{[%emt 00:00:09]} 19. Qe3 {[%clk 00:11:04]} {[%emt 00:00:25]} Qf6 {[%clk
00:05:31]} {[%emt 00:01:53]} 20. Bc3 {[%clk 00:08:55]} {[%emt 00:02:13]} e5
{[%clk 00:04:56]} {[%emt 00:00:41]} 21. f5 {[%clk 00:07:42]} {[%emt 00:01:17]}
Qg5 {[%clk 00:04:16]} {[%emt 00:00:46]} 22. Qf3 {[%clk 00:06:35]} {[%emt
00:01:10]} Qf4 {[%clk 00:03:09]} {[%emt 00:01:13]} 23. Rf1 {[%clk 00:06:30]}
{[%emt 00:00:09]} Qxf3 {[%clk 00:03:12]} {[%emt 00:00:04]} 24. Rxf3 {[%clk
00:06:32]} {[%emt 00:00:02]} Kg7 {[%clk 00:02:51]} {[%emt 00:00:25]} 25. h4
{[%clk 00:06:00]} {[%emt 00:00:37]} Rfe8 {[%clk 00:02:48]} {[%emt 00:00:09]} 26.
fxg6 {[%clk 00:05:54]} {[%emt 00:00:10]} fxg6 {[%clk 00:02:48]} {[%emt
00:00:05]} 27. h5 {[%clk 00:05:51]} {[%emt 00:00:09]} Rf8 {[%clk 00:02:42]}
{[%emt 00:00:12]} 28. Rd3 {[%clk 00:04:36]} {[%emt 00:01:19]} gxh5 {[%clk
00:02:16]} {[%emt 00:00:31]} 29. Nf5+ {[%clk 00:04:23]} {[%emt 00:00:18]} Kg6
{[%clk 00:01:11]} {[%emt 00:01:11]} 30. Rg3+ {[%clk 00:03:08]} {[%emt
00:01:19]} Kf6 {[%clk 00:01:08]} {[%emt 00:00:08]} 31. Nxh6 {[%clk 00:02:58]}
{[%emt 00:00:15]} Ke6 {[%clk 00:00:56]} {[%emt 00:00:17]} 32. Nf5 {[%clk
00:02:47]} {[%emt 00:00:15]} Rg8 {[%clk 00:00:44]} {[%emt 00:00:18]} 33. Ng7+
{[%clk 00:02:33]} {[%emt 00:00:19]} Kf7 {[%clk 00:00:21]} {[%emt 00:00:28]} 34.
Nxh5 {[%clk 00:02:17]} {[%emt 00:00:21]} Rxg3 {[%clk 00:00:20]} {[%emt
00:00:06]} 35. Nxg3 {[%clk 00:02:20]} {[%emt 00:00:02]} Ke6 {[%clk 00:00:23]}
{[%emt 00:00:02]} 36. Nf5 {[%clk 00:02:18]} {[%emt 00:00:07]} Nf6 {[%clk
00:00:17]} {[%emt 00:00:12]} 37. Ng7+ {[%clk 00:01:35]} {[%emt 00:00:48]} Kd6
{[%clk 00:00:08]} {[%emt 00:00:13]} 38. Nf5+ {[%clk 00:01:34]} {[%emt
00:00:06]} Ke6 {[%clk 00:00:12]} 39. Ng7+ {[%clk 00:01:38]} {[%emt 00:00:01]}
Kf7 {[%clk 00:00:13]} {[%emt 00:00:04]} 40. Nf5 {[%clk 00:01:36]} {[%emt
00:00:07]} Rd1+ {[%clk 00:00:15]} {[%emt 00:00:03]} 41. Kh2 {[%clk 00:01:35]}
{[%emt 00:00:06]} Nxe4 {[%clk 00:00:18]} {[%emt 00:00:03]} 42. Bxe5 {[%clk
00:01:35]} {[%emt 00:00:05]} Ke6 {[%clk 00:00:22]} {[%emt 00:00:01]} 43. Ne3
{[%clk 00:01:39]} Re1 {[%clk 00:00:12]} {[%emt 00:00:15]} 44. Bf4 {[%clk
00:01:18]} {[%emt 00:00:25]} Re2 {[%clk 00:00:10]} {[%emt 00:00:07]} 45. Kg1
{[%clk 00:00:48]} {[%emt 00:00:35]} Re1+ {[%clk 00:00:10]} {[%emt 00:00:06]} 46.
Kh2 {[%clk 00:00:51]} {[%emt 00:00:01]} Ra1 {[%clk 00:00:11]} {[%emt 00:00:04]}
47. a4 {[%clk 00:00:55]} Re1 {[%clk 00:00:15]} {[%emt 00:00:02]} 48. a5 {[%clk
00:00:51]} {[%emt 00:00:09]} a6 {[%clk 00:00:19]} {[%emt 00:00:01]} 49. Nd5
{[%clk 00:00:50]} {[%emt 00:00:06]} Kf5 {[%clk 00:00:15]} {[%emt 00:00:08]} 50.
Bg3 {[%clk 00:00:51]} {[%emt 00:00:04]} Nxg3 {[%clk 00:00:09]} {[%emt
00:00:11]} 51. Kxg3 {[%clk 00:00:54]} {[%emt 00:00:01]} Re2 {[%clk 00:00:13]}
{[%emt 00:00:02]} 52. c3 {[%clk 00:00:56]} {[%emt 00:00:03]} Rb2 {[%clk
00:00:10]} {[%emt 00:00:08]} 53. b4 {[%clk 00:00:50]} {[%emt 00:00:12]} cxb4
{[%clk 00:00:13]} {[%emt 00:00:01]} 54. cxb4 {[%clk 00:00:53]} {[%emt
00:00:02]} Ke5 {[%clk 00:00:16]} {[%emt 00:00:02]} 55. Nb6 {[%clk 00:00:44]}
{[%emt 00:00:13]} Rxb4 {[%clk 00:00:14]} {[%emt 00:00:08]} 56. Nd7+ {[%clk
00:00:39]} {[%emt 00:00:10]} Kd6 {[%clk 00:00:14]} {[%emt 00:00:05]} 57. Nb6
{[%clk 00:00:39]} {[%emt 00:00:05]} Kc6 {[%clk 00:00:13]} {[%emt 00:00:05]} 58.
Kf4 {[%clk 00:00:38]} {[%emt 00:00:06]} Rb2 {[%clk 00:00:16]} {[%emt 00:00:03]}
59. g4 {[%clk 00:00:42]} {[%emt 00:00:01]} Ra2 {[%clk 00:00:20]} 60. g5 {[%clk
00:00:40]} {[%emt 00:00:07]} Rxa5 {[%clk 00:00:24]} {[%emt 00:00:02]} 61. g6
{[%clk 00:00:29]} {[%emt 00:00:15]} Ra1 {[%clk 00:00:21]} {[%emt 00:00:08]} 62.
Nd5 {[%clk 00:00:25]} {[%emt 00:00:09]} Rf1+ {[%clk 00:00:18]} {[%emt
00:00:08]} 63. Kg5 {[%clk 00:00:28]} {[%emt 00:00:02]} a5 {[%clk 00:00:19]}
{[%emt 00:00:05]} 64. Kh6 {[%clk 00:00:19]} {[%emt 00:00:13]} Rh1 {[%clk
00:00:23]} {[%emt 00:00:01]} 65. Kg7 {[%clk 00:00:22]} {[%emt 00:00:02]} a4
{[%clk 00:00:27]} {[%emt 00:00:01]} 66. Kf7 {[%clk 00:00:22]} {[%emt 00:00:04]}
a3 {[%clk 00:00:29]} {[%emt 00:00:04]} 67. g7 {[%clk 00:00:24]} {[%emt
00:00:04]} Rg1 {[%clk 00:00:26]} {[%emt 00:00:08]} 68. Nb4+ {[%clk 00:00:07]}
{[%emt 00:00:21]} Kc5 {[%clk 00:00:29]} {[%emt 00:00:03]} 69. Na2 {[%clk
00:00:10]} Kxc4 {[%clk 00:00:27]} {[%emt 00:00:07]} 70. g8=Q {[%clk 00:00:13]}
{[%emt 00:00:03]} Rxg8 {[%clk 00:00:30]} {[%emt 00:00:01]} 71. Kxg8 {[%clk
00:00:17]} {[%emt 00:00:02]} b5 {[%clk 00:00:32]} {[%emt 00:00:03]} 72. Kf7
{[%clk 00:00:20]} b4 {[%clk 00:00:36]} {[%emt 00:00:01]} 73. Ke6 {[%clk
00:00:23]} {[%emt 00:00:02]} b3 {[%clk 00:00:40]} {[%emt 00:00:01]} 74. Nc1
{[%clk 00:00:27]} {[%emt 00:00:02]} b2 {[%clk 00:00:44]} 0-1

[Event "Open NK Rapid 2025 bord 26-50"]
[Site "Helmond, Netherlands"]
[Date "2025.05.03"]
[Round "4.8"]
[White "Aarts, Joaquin"]
[Black "Sleeckx, Alexander"]
[Result "1-0"]
[TimeControl "15 min +5 sec increment"]
[WhiteFideId "1078224"]
[BlackFideId "1091972"]
[WhiteElo "2027"]
[BlackElo "1813"]

1. d4 {[%clk 00:15:07]} {[%emt 00:00:02]} Nf6 {[%clk 00:15:07]} {[%emt
00:00:04]} 2. c4 {[%clk 00:15:11]} {[%emt 00:00:01]} e6 {[%clk 00:15:10]}
{[%emt 00:00:02]} 3. Nc3 {[%clk 00:15:15]} {[%emt 00:00:01]} Bb4 {[%clk
00:15:12]} {[%emt 00:00:03]} 4. e3 {[%clk 00:15:18]} {[%emt 00:00:01]} O-O
{[%clk 00:15:10]} {[%emt 00:00:08]} 5. Bd3 {[%clk 00:15:21]} {[%emt 00:00:01]}
d5 {[%clk 00:15:13]} {[%emt 00:00:03]} 6. a3 {[%clk 00:15:18]} {[%emt
00:00:07]} Bxc3+ {[%clk 00:15:09]} {[%emt 00:00:09]} 7. bxc3 {[%clk 00:15:21]}
{[%emt 00:00:03]} dxc4 {[%clk 00:14:58]} {[%emt 00:00:16]} 8. Bxc4 {[%clk
00:15:23]} {[%emt 00:00:02]} c5 {[%clk 00:14:55]} {[%emt 00:00:08]} 9. Ne2
{[%clk 00:14:53]} {[%emt 00:00:35]} Qc7 {[%clk 00:14:37]} {[%emt 00:00:24]} 10.
Bd3 {[%clk 00:14:16]} {[%emt 00:00:40]} b6 {[%clk 00:13:56]} {[%emt 00:00:48]}
11. O-O {[%clk 00:13:30]} {[%emt 00:00:50]} Bb7 {[%clk 00:13:59]} {[%emt
00:00:02]} 12. Ng3 {[%clk 00:13:08]} {[%emt 00:00:27]} Nbd7 {[%clk 00:12:51]}
{[%emt 00:01:13]} 13. e4 {[%clk 00:12:58]} {[%emt 00:00:15]} cxd4 {[%clk
00:11:43]} {[%emt 00:01:14]} 14. cxd4 {[%clk 00:13:01]} {[%emt 00:00:02]} e5
{[%clk 00:11:44]} {[%emt 00:00:04]} 15. d5 {[%clk 00:11:54]} {[%emt 00:01:12]}
Nc5 {[%clk 00:10:44]} {[%emt 00:01:05]} 16. Be3 {[%clk 00:11:53]} {[%emt
00:00:04]} Nxd3 {[%clk 00:10:29]} {[%emt 00:00:21]} 17. Qxd3 {[%clk 00:11:56]}
{[%emt 00:00:02]} Qd7 {[%clk 00:09:39]} {[%emt 00:00:56]} 18. a4 {[%clk
00:10:49]} {[%emt 00:01:11]} Ne8 {[%clk 00:09:30]} {[%emt 00:00:15]} 19. a5
{[%clk 00:10:07]} {[%emt 00:00:47]} Nd6 {[%clk 00:09:26]} {[%emt 00:00:08]} 20.
axb6 {[%clk 00:09:55]} {[%emt 00:00:18]} axb6 {[%clk 00:09:17]} {[%emt
00:00:13]} 21. Bxb6 {[%clk 00:09:49]} {[%emt 00:00:11]} Ra4 {[%clk 00:08:01]}
{[%emt 00:01:22]} 22. Rxa4 {[%clk 00:08:43]} {[%emt 00:01:11]} Qxa4 {[%clk
00:08:03]} {[%emt 00:00:02]} 23. Rc1 {[%clk 00:07:11]} {[%emt 00:01:36]} Ba6
{[%clk 00:07:11]} {[%emt 00:00:59]} 24. Qd1 {[%clk 00:06:50]} {[%emt 00:00:25]}
Qb5 {[%clk 00:05:43]} {[%emt 00:01:35]} 25. Bc5 {[%clk 00:06:18]} {[%emt
00:00:35]} Rd8 {[%clk 00:05:12]} {[%emt 00:00:37]} 26. Bxd6 {[%clk 00:05:55]}
{[%emt 00:00:28]} Rxd6 {[%clk 00:05:06]} {[%emt 00:00:11]} 27. Rb1 {[%clk
00:05:25]} {[%emt 00:00:35]} Qe8 {[%clk 00:04:53]} {[%emt 00:00:18]} 28. Nf5
{[%clk 00:05:27]} {[%emt 00:00:02]} Rd8 {[%clk 00:04:16]} {[%emt 00:00:43]} 29.
h3 {[%clk 00:04:00]} {[%emt 00:01:32]} g6 {[%clk 00:04:13]} {[%emt 00:00:08]}
30. Ne3 {[%clk 00:03:40]} {[%emt 00:00:24]} Qe7 {[%clk 00:03:34]} {[%emt
00:00:45]} 31. Qa4 {[%clk 00:02:47]} {[%emt 00:00:58]} Bc8 {[%clk 00:02:55]}
{[%emt 00:00:44]} 32. Qa5 {[%clk 00:01:36]} {[%emt 00:01:10]} Kg7 {[%clk
00:01:38]} {[%emt 00:01:27]} 33. Qc3 {[%clk 00:01:14]} {[%emt 00:00:24]} Ba6
{[%clk 00:01:27]} {[%emt 00:00:20]} 34. Ng4 {[%clk 00:00:56]} {[%emt 00:00:22]}
Re8 {[%clk 00:01:10]} {[%emt 00:00:23]} 35. Rb6 {[%clk 00:00:09]} {[%emt
00:00:50]} h5 {[%clk 00:01:04]} {[%emt 00:00:12]} 36. Rxa6 {[%clk 00:00:08]}
{[%emt 00:00:06]} hxg4 {[%clk 00:01:07]} {[%emt 00:00:02]} 37. hxg4 {[%clk
00:00:12]} {[%emt 00:00:02]} Qg5 {[%clk 00:00:55]} {[%emt 00:00:17]} 38. f3
{[%clk 00:00:13]} {[%emt 00:00:04]} Rh8 {[%clk 00:00:56]} {[%emt 00:00:04]} 39.
Ra1 {[%clk 00:00:08]} {[%emt 00:00:10]} Qf4 {[%clk 00:00:57]} {[%emt 00:00:04]}
40. Kf2 {[%clk 00:00:10]} {[%emt 00:00:03]} Rb8 {[%clk 00:00:56]} {[%emt
00:00:06]} 41. Qc1 {[%clk 00:00:10]} {[%emt 00:00:05]} Qf6 {[%clk 00:00:54]}
{[%emt 00:00:07]} 42. Rb1 {[%clk 00:00:12]} {[%emt 00:00:02]} Qh4+ {[%clk
00:00:48]} {[%emt 00:00:11]} 43. Ke2 {[%clk 00:00:16]} {[%emt 00:00:02]} Ra8
{[%clk 00:00:47]} {[%emt 00:00:06]} 44. Rb2 {[%clk 00:00:17]} {[%emt 00:00:03]}
Qg3 {[%clk 00:00:47]} {[%emt 00:00:06]} 45. Qf1 {[%clk 00:00:19]} {[%emt
00:00:01]} Ra3 {[%clk 00:00:49]} {[%emt 00:00:04]} 46. Qf2 {[%clk 00:00:21]}
{[%emt 00:00:02]} Qf4 {[%clk 00:00:51]} {[%emt 00:00:04]} 47. Rc2 {[%clk
00:00:24]} {[%emt 00:00:02]} Qf6 {[%clk 00:00:27]} {[%emt 00:00:30]} 48. Qc5
{[%clk 00:00:14]} {[%emt 00:00:14]} Ra1 {[%clk 00:00:25]} {[%emt 00:00:08]} 49.
d6 {[%clk 00:00:11]} {[%emt 00:00:08]} Ra8 {[%clk 00:00:11]} {[%emt 00:00:18]}
50. Rd2 {[%clk 00:00:14]} {[%emt 00:00:03]} Rd8 {[%clk 00:00:15]} {[%emt
00:00:01]} 51. d7 {[%clk 00:00:09]} {[%emt 00:00:11]} Qa6+ {[%clk 00:00:13]}
{[%emt 00:00:07]} 52. Kf2 {[%clk 00:00:12]} {[%emt 00:00:01]} Qf6 {[%clk
00:00:16]} {[%emt 00:00:02]} 53. Qe3 {[%clk 00:00:10]} {[%emt 00:00:07]} Qc6
{[%clk 00:00:18]} {[%emt 00:00:04]} 54. Qd3 {[%clk 00:00:11]} {[%emt 00:00:03]}
Qc5+ {[%clk 00:00:20]} {[%emt 00:00:03]} 55. Ke2 {[%clk 00:00:14]} {[%emt
00:00:01]} Qg1 {[%clk 00:00:18]} {[%emt 00:00:07]} 56. Qd5 {[%clk 00:00:07]}
{[%emt 00:00:13]} Qxg2+ {[%clk 00:00:16]} {[%emt 00:00:06]} 57. Ke3 {[%clk
00:00:10]} {[%emt 00:00:01]} Qg1+ {[%clk 00:00:18]} {[%emt 00:00:05]} 58. Rf2
{[%clk 00:00:11]} {[%emt 00:00:04]} Qc1+ {[%clk 00:00:19]} {[%emt 00:00:05]} 59.
Ke2 {[%clk 00:00:13]} {[%emt 00:00:02]} Qc7 {[%clk 00:00:17]} {[%emt 00:00:07]}
60. Kf1 {[%clk 00:00:08]} {[%emt 00:00:09]} Rxd7 {[%clk 00:00:21]} {[%emt
00:00:02]} 61. Qb3 {[%clk 00:00:11]} {[%emt 00:00:02]} Rd4 {[%clk 00:00:12]}
{[%emt 00:00:14]} 62. Qe3 {[%clk 00:00:11]} {[%emt 00:00:05]} Qd7 {[%clk
00:00:12]} {[%emt 00:00:05]} 63. Rh2 {[%clk 00:00:08]} {[%emt 00:00:07]} Rd1+
{[%clk 00:00:13]} {[%emt 00:00:05]} 64. Ke2 {[%clk 00:00:08]} {[%emt 00:00:03]}
Kf8 {[%clk 00:00:00]} {[%emt 00:00:16]} 1-0

[Event "Open NK Rapid 2025 bord 26-50"]
[Site "Helmond, Netherlands"]
[Date "2025.05.03"]
[Round "4.9"]
[White "Kazi, Zidan"]
[Black "Klein, Ron"]
[Result "1/2-1/2"]
[TimeControl "15 min +5 sec increment"]
[WhiteFideId "40102300"]
[BlackFideId "1014668"]
[WhiteElo "1818"]
[BlackElo "2014"]

1. e4 {[%clk 00:15:08]} {[%emt 00:00:02]} d5 {[%clk 00:14:57]} {[%emt
00:00:13]} 2. exd5 {[%clk 00:15:08]} {[%emt 00:00:05]} Qxd5 {[%clk 00:14:58]}
{[%emt 00:00:04]} 3. Nc3 {[%clk 00:15:10]} {[%emt 00:00:03]} Qa5 {[%clk
00:15:01]} {[%emt 00:00:02]} 4. d4 {[%clk 00:15:10]} {[%emt 00:00:05]} Bf5
{[%clk 00:14:59]} {[%emt 00:00:06]} 5. Bd2 {[%clk 00:15:08]} {[%emt 00:00:07]}
c6 {[%clk 00:15:01]} {[%emt 00:00:04]} 6. Nf3 {[%clk 00:15:10]} {[%emt
00:00:03]} Nf6 {[%clk 00:14:54]} {[%emt 00:00:11]} 7. Bc4 {[%clk 00:15:07]}
{[%emt 00:00:08]} e6 {[%clk 00:14:57]} {[%emt 00:00:03]} 8. O-O {[%clk
00:15:04]} {[%emt 00:00:08]} Qc7 {[%clk 00:13:44]} {[%emt 00:01:17]} 9. Ne5
{[%clk 00:15:02]} {[%emt 00:00:08]} Nbd7 {[%clk 00:13:46]} {[%emt 00:00:03]} 10.
Bf4 {[%clk 00:15:03]} {[%emt 00:00:04]} Bd6 {[%clk 00:13:39]} {[%emt 00:00:12]}
11. Re1 {[%clk 00:14:53]} {[%emt 00:00:16]} O-O {[%clk 00:13:16]} {[%emt
00:00:27]} 12. Qf3 {[%clk 00:14:31]} {[%emt 00:00:26]} Bg6 {[%clk 00:12:38]}
{[%emt 00:00:44]} 13. Nxg6 {[%clk 00:13:32]} {[%emt 00:01:04]} hxg6 {[%clk
00:12:41]} {[%emt 00:00:02]} 14. Bxd6 {[%clk 00:13:33]} {[%emt 00:00:03]} Qxd6
{[%clk 00:12:45]} {[%emt 00:00:02]} 15. Rad1 {[%clk 00:13:36]} {[%emt
00:00:02]} Nd5 {[%clk 00:12:39]} {[%emt 00:00:10]} 16. Bxd5 {[%clk 00:13:26]}
{[%emt 00:00:15]} exd5 {[%clk 00:12:35]} {[%emt 00:00:09]} 17. Qg3 {[%clk
00:12:47]} {[%emt 00:00:45]} Qb4 {[%clk 00:11:19]} {[%emt 00:01:20]} 18. Qh4
{[%clk 00:10:45]} {[%emt 00:02:06]} Rfe8 {[%clk 00:10:46]} {[%emt 00:00:40]} 19.
Qh3 {[%clk 00:10:28]} {[%emt 00:00:22]} Nf6 {[%clk 00:10:25]} {[%emt 00:00:26]}
20. Qd3 {[%clk 00:08:55]} {[%emt 00:01:38]} Re7 {[%clk 00:09:47]} {[%emt
00:00:44]} 21. Rxe7 {[%clk 00:08:08]} {[%emt 00:00:52]} Qxe7 {[%clk 00:09:49]}
{[%emt 00:00:02]} 22. h3 {[%clk 00:07:54]} {[%emt 00:00:19]} Re8 {[%clk
00:09:30]} {[%emt 00:00:24]} 23. Qd2 {[%clk 00:07:41]} {[%emt 00:00:17]} Ne4
{[%clk 00:09:03]} {[%emt 00:00:33]} 24. Nxe4 {[%clk 00:07:43]} {[%emt
00:00:03]} Qxe4 {[%clk 00:09:06]} {[%emt 00:00:02]} 25. Kf1 {[%clk 00:07:41]}
{[%emt 00:00:07]} Re6 {[%clk 00:08:18]} {[%emt 00:00:53]} 26. Re1 {[%clk
00:07:04]} {[%emt 00:00:42]} 1/2-1/2

[Event "Open NK Rapid 2025 bord 26-50"]
[Site "Helmond, Netherlands"]
[Date "2025.05.03"]
[Round "4.10"]
[White "Husers, Yannic"]
[Black "Mau-Asam, LÃ©on"]
[Result "0-1"]
[TimeControl "15 min +5 sec increment"]
[WhiteFideId "1043587"]
[BlackFideId "40105890"]
[WhiteElo "2002"]
[BlackElo "1795"]

1. e4 {[%clk 00:15:08]} {[%emt 00:00:01]} c5 {[%clk 00:15:08]} {[%emt
00:00:02]} 2. Nf3 {[%clk 00:15:09]} {[%emt 00:00:04]} Nc6 {[%clk 00:15:11]}
{[%emt 00:00:02]} 3. d4 {[%clk 00:15:08]} {[%emt 00:00:05]} cxd4 {[%clk
00:15:14]} {[%emt 00:00:03]} 4. Nxd4 {[%clk 00:15:08]} {[%emt 00:00:05]} e6
{[%clk 00:15:17]} {[%emt 00:00:02]} 5. Nc3 {[%clk 00:15:06]} {[%emt 00:00:07]}
Qc7 {[%clk 00:15:19]} {[%emt 00:00:03]} 6. g3 {[%clk 00:15:04]} {[%emt
00:00:07]} a6 {[%clk 00:15:20]} {[%emt 00:00:04]} 7. Bg2 {[%clk 00:15:03]}
{[%emt 00:00:06]} Nf6 {[%clk 00:14:46]} {[%emt 00:00:39]} 8. O-O {[%clk
00:15:01]} {[%emt 00:00:08]} Be7 {[%clk 00:14:36]} {[%emt 00:00:14]} 9. a4
{[%clk 00:14:27]} {[%emt 00:00:39]} O-O {[%clk 00:13:30]} {[%emt 00:01:11]} 10.
Nce2 {[%clk 00:14:10]} {[%emt 00:00:22]} Rb8 {[%clk 00:11:40]} {[%emt
00:01:55]} 11. b3 {[%clk 00:13:33]} {[%emt 00:00:42]} d5 {[%clk 00:10:31]}
{[%emt 00:01:14]} 12. exd5 {[%clk 00:13:22]} {[%emt 00:00:17]} exd5 {[%clk
00:10:33]} {[%emt 00:00:02]} 13. Bb2 {[%clk 00:12:21]} {[%emt 00:01:06]} Rd8
{[%clk 00:10:18]} {[%emt 00:00:20]} 14. Rc1 {[%clk 00:11:43]} {[%emt 00:00:44]}
Be6 {[%clk 00:09:30]} {[%emt 00:00:51]} 15. Nf4 {[%clk 00:11:20]} {[%emt
00:00:29]} Rd6 {[%clk 00:08:33]} {[%emt 00:01:02]} 16. Re1 {[%clk 00:10:30]}
{[%emt 00:00:55]} Nxd4 {[%clk 00:08:03]} {[%emt 00:00:35]} 17. Qxd4 {[%clk
00:10:27]} {[%emt 00:00:09]} Bf8 {[%clk 00:04:55]} {[%emt 00:03:13]} 18. Qd3
{[%clk 00:07:18]} {[%emt 00:03:13]} Rc6 {[%clk 00:04:31]} {[%emt 00:00:29]} 19.
Bxf6 {[%clk 00:07:02]} {[%emt 00:00:21]} gxf6 {[%clk 00:04:29]} {[%emt
00:00:07]} 20. Bxd5 {[%clk 00:06:17]} {[%emt 00:00:51]} Rc3 {[%clk 00:03:01]}
{[%emt 00:01:33]} 21. Nxe6 {[%clk 00:05:52]} {[%emt 00:00:29]} fxe6 {[%clk
00:02:19]} {[%emt 00:00:46]} 22. Bxe6+ {[%clk 00:05:50]} {[%emt 00:00:08]} Kh8
{[%clk 00:01:32]} {[%emt 00:00:51]} 23. Qf5 {[%clk 00:05:15]} {[%emt 00:00:40]}
Qb6 {[%clk 00:00:42]} {[%emt 00:00:56]} 24. Rcd1 {[%clk 00:04:05]} {[%emt
00:01:16]} Rc5 {[%clk 00:00:10]} {[%emt 00:00:36]} 25. Qf4 {[%clk 00:03:47]}
{[%emt 00:00:23]} Re8 {[%clk 00:00:07]} {[%emt 00:00:08]} 26. Qxf6+ {[%clk
00:03:44]} {[%emt 00:00:09]} Bg7 {[%clk 00:00:11]} {[%emt 00:00:01]} 27. Qf7
{[%clk 00:03:47]} {[%emt 00:00:01]} Rf8 {[%clk 00:00:15]} {[%emt 00:00:02]} 28.
Qe7 {[%clk 00:03:09]} {[%emt 00:00:42]} Rxc2 {[%clk 00:00:18]} {[%emt
00:00:03]} 29. Bf5 {[%clk 00:02:39]} {[%emt 00:00:34]} Qxf2+ {[%clk 00:00:21]}
{[%emt 00:00:03]} 0-1